bitfinex-derivatives/quotes_SOLF0:USTF0_20260306
["timestamp","ask_amount","ask_price","bid_price","bid_amount"]
[1772826890368,3.96013829,85.149,85.111,14.18282914]
[1772826890575,21.129,85.195,85.083,460.29117288]
[1772826890576,3.60913203,85.16,85.119,3.60882914]
[1772826890769,7.56927032,85.16,85.119,3.60882914]
[1772826891276,7.56927032,85.16,85.122,3.60882914]
[1772826891478,3.60913203,85.17,85.122,3.60882914]
[1772826891679,9.83916415,85.169,85.122,3.60882914]
[1772826891884,3.60913203,85.17,85.122,3.60882914]
[1772826892079,9.83915785,85.169,85.122,3.60882914]
[1772826892276,3.60913203,85.17,85.122,3.60882914]
[1772826892476,9.83920928,85.169,85.122,3.60882914]
[1772826892676,3.60913203,85.17,85.122,3.60882914]
[1772826892981,9.83921202,85.169,85.129,10.572]
[1772826893181,3.60913203,85.17,85.129,10.572]
[1772826893376,9.83931657,85.169,85.129,10.572]
[1772826893679,3.60913203,85.17,85.129,10.572]
[1772826893879,9.83931657,85.169,85.129,10.572]
[1772826894080,3.60913203,85.17,85.129,10.572]
[1772826894379,9.83931657,85.169,85.129,10.572]
[1772826894579,3.60913203,85.17,85.129,10.572]
[1772826894779,9.83942299,85.169,85.129,10.572]
[1772826894981,3.60913203,85.17,85.129,10.572]
[1772826895175,9.83942299,85.169,85.129,10.572]
[1772826895481,3.60913203,85.17,85.129,10.572]
[1772826895677,9.83952798,85.169,85.129,10.572]
[1772826895879,3.60913203,85.17,85.129,10.572]
[1772826896080,3.65748716,85.168,85.123,3.90658308]
[1772826896379,9.8392815,85.167,85.123,3.90658308]
[1772826896578,9.8392815,85.166,85.123,3.90658308]
[1772826896779,3.65748716,85.159,85.111,3.90658308]
[1772826896980,3.60913203,85.15,85.111,3.90658308]
[1772826897883,3.60913203,85.15,85.113,3.90658308]
[1772826901080,10.569,85.158,85.113,3.90658308]
[1772826901279,3.65748716,85.157,85.113,3.90658308]
[1772826901984,3.68956697,85.149,85.108,10.575]
[1772826902578,3.68956697,85.149,85.101,3.77612546]
[1772826902579,3.60913203,85.14,85.102,3.77612546]
[1772826902783,3.68956697,85.165,85.111,3.77612546]
[1772826903480,3.68956697,85.164,85.111,3.77612546]
[1772826903678,9.83888226,85.163,85.111,3.77612546]
[1772826903983,3.68956697,85.164,85.121,3.77612546]
[1772826904178,3.68956697,85.178,85.121,3.77612546]
[1772826904384,3.68956697,85.178,85.099,21.152]
[1772826904385,9.84057043,85.177,85.131,3.77612546]
[1772826904581,3.68956697,85.178,85.131,3.77612546]
[1772826905686,10.88421386,85.197,85.083,460.29117288]
[1772826905687,3.60913203,85.15,85.101,3.77612546]
[1772826905885,3.68956697,85.159,85.101,3.77612546]
[1772826906388,3.68956697,85.159,85.114,3.77612546]
[1772826906389,9.83723038,85.158,85.114,3.77612546]
[1772826906688,3.68956697,85.139,85.101,3.77612546]
[1772826906887,3.60913203,85.13,85.087,3.77612546]
[1772826907289,3.68956697,85.139,85.087,3.77612546]
[1772826907689,3.68956697,85.139,85.083,460.29117288]
[1772826907690,3.60913203,85.15,85.11,10.574]
[1772826909495,3.60913203,85.16,85.111,3.77612546]
[1772826910788,3.60913203,85.16,85.115,10.574]
[1772826912197,3.60913203,85.16,85.116,3.77612546]
[1772826912896,3.68956697,85.167,85.122,3.77612546]
[1772826913098,7.298699,85.18,85.122,3.77612546]
[1772826913288,9.83228531,85.179,85.122,3.77612546]
[1772826913493,9.83228531,85.178,85.131,3.77612546]
[1772826913698,9.83228531,85.177,85.131,3.77612546]
[1772826913903,24.08885228,85.176,85.131,3.77612546]
[1772826914101,9.83228531,85.175,85.131,3.77612546]
[1772826914296,9.83228531,85.174,85.133,3.77612546]
[1772826914506,9.83340902,85.173,85.133,3.77612546]
[1772826914703,3.68956697,85.169,85.12,7.38512583]
[1772826914900,3.68956697,85.169,85.121,3.77612546]
[1772826915295,3.68956697,85.169,85.124,3.77612546]
[1772826916506,3.68956697,85.179,85.127,3.77612546]
[1772826916705,3.68956697,85.177,85.127,3.77612546]
[1772826917002,10.568,85.162,85.127,3.77612546]
[1772826917402,10.568,85.162,85.111,3.77612546]
[1772826917607,3.68956697,85.163,85.121,14.34912546]
[1772826917803,3.68956697,85.163,85.122,3.77612546]
[1772826918205,10.567,85.169,85.124,3.77612546]
[1772826918508,3.60900037,85.17,85.124,3.77612546]
[1772826918509,3.68956697,85.167,85.124,3.77612546]
[1772826919905,3.68956697,85.166,85.124,3.77612546]
[1772826920306,7.29856734,85.18,85.124,3.77612546]
[1772826920507,9.83459695,85.179,85.124,3.77612546]
[1772826920706,9.83459695,85.178,85.124,3.77612546]
[1772826920907,9.83459695,85.177,85.124,3.77612546]
[1772826921110,10.567,85.175,85.136,3.77612546]
[1772826921614,9.83460322,85.174,85.136,3.77612546]
[1772826921801,9.83460322,85.173,85.136,3.77612546]
[1772826922004,10.567,85.175,85.136,3.77612546]
[1772826922210,10.567,85.172,85.136,3.77612546]
[1772826922510,3.68956697,85.169,85.123,3.77612546]
[1772826922707,3.68956697,85.167,85.123,3.77612546]
[1772826922908,3.68956697,85.165,85.123,3.77612546]
[1772826923108,9.83440837,85.164,85.123,3.77612546]
[1772826923310,9.83440837,85.163,85.123,3.77612546]
[1772826923511,9.83440837,85.162,85.123,3.77612546]
[1772826923710,9.83440837,85.161,85.123,3.77612546]
[1772826923913,3.68956697,85.164,85.123,3.77612546]
[1772826924213,3.68956697,85.161,85.123,3.77612546]
[1772826927503,3.68956697,85.161,85.124,10.573]
[1772826930011,10.568,85.166,85.128,10.572]
[1772826930407,3.60900037,85.18,85.135,14.34712546]
[1772826930609,9.83639213,85.179,85.136,3.77612546]
[1772826930811,9.83639213,85.178,85.136,3.77612546]
[1772826931015,9.83639213,85.177,85.138,14.34712546]
[1772826931210,9.83639213,85.176,85.14,3.60900037]
[1772826931410,21.76228245,85.216,85.091,11.74]
[1772826931411,3.68956697,85.196,85.16,7.38512583]
[1772826931717,9.83864917,85.195,85.16,7.38512583]
[1772826931910,9.83864917,85.194,85.16,7.38512583]
[1772826932110,3.68956697,85.196,85.16,7.38512583]
[1772826932613,3.68956697,85.196,85.111,21.149]
[1772826932614,3.88514344,85.194,85.15,3.9763717]
[1772826933209,10.564,85.193,85.151,3.9763717]
[1772826936322,10.565,85.187,85.151,3.9763717]
[1772826937124,14.44914344,85.194,85.151,3.9763717]
[1772826937419,3.60900037,85.19,85.151,3.9763717]
[1772826938122,3.88514344,85.193,85.151,3.9763717]
[1772826938622,3.88514344,85.193,85.154,10.569]
[1772826939318,3.88514344,85.193,85.155,3.9763717]
[1772826943224,3.88514344,85.193,85.156,10.569]
[1772826945224,3.88514344,85.193,85.155,3.9763717]
[1772826945426,3.60900037,85.19,85.155,3.9763717]
[1772826945627,3.88514344,85.193,85.156,3.9763717]
[1772826946919,3.88514344,85.193,85.163,10.568]
[1772826947330,309.3831281,85.2,85.17,10.567]
[1772826947632,3.88514344,85.205,85.17,10.567]
[1772826948633,3.88514344,85.205,85.164,3.9763717]
[1772826949331,3.60900037,85.2,85.164,3.9763717]
[1772826949932,3.60900037,85.2,85.167,10.567]
[1772826950230,7.49414381,85.2,85.164,3.9763717]
[1772826950928,7.49414381,85.2,85.165,10.568]
[1772826952333,7.49414381,85.2,85.164,3.9763717]
[1772826954333,3.88514344,85.199,85.164,3.9763717]
[1772826954527,7.49414381,85.19,85.152,3.9763717]
[1772826956135,3.88514344,85.19,85.152,3.9763717]
[1772826956729,3.88514344,85.19,85.154,3.9152162]
[1772826957735,3.88514344,85.19,85.157,10.569]
[1772826960540,3.88514344,85.19,85.157,14.4842162]
[1772826960839,3.88514344,85.19,85.158,3.9152162]
[1772826961341,3.60900037,85.2,85.16,3.9152162]
[1772826962641,3.60900037,85.2,85.162,3.91553962]
[1772826962843,3.85888896,85.213,85.162,3.91553962]
[1772826963638,3.85888896,85.213,85.173,3.91553962]
[1772826964033,3.60900037,85.21,85.173,3.91553962]
[1772826965340,3.85888896,85.213,85.176,3.91553962]
[1772826966844,3.60900037,85.21,85.179,10.566]
[1772826967545,3.85888896,85.213,85.179,10.566]
[1772826968038,3.85888896,85.226,85.182,3.91553962]
[1772826968844,3.60900037,85.22,85.182,3.91553962]
[1772826969239,10.56,85.227,85.182,3.91553962]
[1772826969240,3.60900037,85.21,85.182,3.91553962]
[1772826969540,3.85888896,85.219,85.182,3.91553962]
[1772826973345,3.85888896,85.217,85.177,3.91553962]
[1772826973540,3.60900037,85.21,85.177,3.91553962]
[1772826974747,3.85888896,85.217,85.177,3.91553962]
[1772826975246,3.60900037,85.22,85.179,3.91553962]
[1772826976445,3.60522428,85.22,85.179,3.91553962]
[1772826976745,3.60522428,85.22,85.183,3.91553962]
[1772826977548,3.85888896,85.209,85.172,3.91553962]
[1772826978450,3.85888896,85.209,85.173,10.567]
[1772826978948,3.85888896,85.209,85.177,10.566]
[1772826979248,3.85888896,85.209,85.177,14.48153962]
[1772826982647,3.60522428,85.21,85.182,10.566]
[1772826982954,3.60522428,85.21,85.183,3.91553962]
[1772826983153,3.85888896,85.219,85.183,3.91553962]
[1772826983849,3.85888896,85.219,85.184,10.565]
[1772826984151,3.85888896,85.219,85.185,3.91553962]
[1772826984755,3.60522428,85.22,85.187,3.91553962]
[1772826985054,312.04091118,85.228,85.187,3.91553962]
[1772826985254,315.89980014,85.228,85.187,3.91553962]
[1772826985454,3.85888896,85.227,85.187,3.91553962]
[1772826985647,3.60522428,85.22,85.187,3.91553962]
[1772826986457,3.60522428,85.22,85.188,10.565]
[1772826986853,7.46411324,85.21,85.171,3.91553962]
[1772826987960,7.46411324,85.21,85.182,10.566]
[1772826988150,3.60522428,85.22,85.182,10.566]
[1772826989857,3.60522428,85.22,85.183,3.91553962]
[1772826990455,312.04091118,85.228,85.183,3.91553962]
[1772826990761,312.04091118,85.228,85.192,14.47953962]
[1772826993364,312.04091118,85.228,85.195,10.564]
[1772826994472,312.04091118,85.228,85.201,10.563]
[1772826994662,312.04091118,85.228,85.195,3.65790457]
[1772826995065,3.77222552,85.227,85.195,3.65790457]
[1772826996064,312.04091118,85.228,85.202,10.563]
[1772826996364,3.77222552,85.234,85.195,3.65790457]
[1772826996669,3.77222552,85.219,85.142,3.65790457]
[1772826996861,3.77222552,85.199,85.151,3.65790457]
[1772826997063,7.3774498,85.22,85.171,3.65790457]
[1772826997365,3.77222552,85.219,85.186,10.565]
[1772826997863,3.60522428,85.22,85.171,3.65790457]
[1772826998464,3.60522428,85.22,85.184,10.565]
[1772826998661,3.77222552,85.219,85.184,10.565]
[1772826998862,3.60522428,85.21,85.171,3.65790457]
[1772826999771,3.60522428,85.2,85.176,10.566]
[1772826999964,3.77222552,85.209,85.176,10.566]
[1772827001167,7.3774498,85.22,85.171,3.65790457]
[1772827001366,9.82662917,85.219,85.171,3.65790457]
[1772827001565,7.3774498,85.22,85.171,3.65790457]
[1772827001766,9.82668638,85.219,85.171,3.65790457]
[1772827001967,7.3774498,85.22,85.171,3.65790457]
[1772827002162,9.82668638,85.219,85.171,3.65790457]
[1772827002367,9.82668638,85.218,85.171,3.65790457]
[1772827002677,7.3774498,85.22,85.171,3.65790457]
[1772827002868,9.8293461,85.219,85.191,10.564]
[1772827003069,9.8293461,85.218,85.191,10.564]
[1772827003371,9.83181381,85.217,85.191,10.564]
[1772827003670,7.3774498,85.22,85.191,10.564]
[1772827006570,3.77222552,85.22,85.197,10.564]
[1772827007170,9.84080791,85.219,85.197,10.564]
[1772827007368,3.77222552,85.22,85.184,3.65790457]
[1772827007369,3.77222552,85.22,85.19,10.565]
[1772827007570,9.84080917,85.219,85.19,10.565]
[1772827007771,3.77222552,85.22,85.19,10.565]
[1772827008069,9.84080917,85.219,85.19,10.565]
[1772827008270,9.84080917,85.218,85.19,10.565]
[1772827008466,3.77222552,85.22,85.19,10.565]
[1772827008662,9.89378585,85.219,85.19,10.565]
[1772827008863,9.89378585,85.218,85.19,10.565]
[1772827009070,3.77222552,85.22,85.19,10.565]
[1772827009273,9.89547907,85.219,85.19,10.565]
[1772827009479,9.89547907,85.218,85.19,10.565]
[1772827009674,3.77222552,85.22,85.19,10.565]
[1772827009872,9.89571923,85.219,85.19,10.565]
[1772827010073,9.89571923,85.218,85.19,10.565]
[1772827010276,7.3774498,85.22,85.19,10.565]
[1772827010573,9.89338954,85.219,85.185,3.65790457]
[1772827010776,9.89338954,85.218,85.185,3.65790457]
[1772827010975,7.3774498,85.22,85.185,3.65790457]
[1772827011279,9.89334265,85.219,85.185,3.65790457]
[1772827011475,9.89334265,85.218,85.185,3.65790457]
[1772827011677,7.3774498,85.22,85.185,3.65790457]
[1772827011977,9.8936983,85.219,85.187,10.565]
[1772827012177,9.8936983,85.218,85.187,10.565]
[1772827012377,7.3774498,85.22,85.187,10.565]
[1772827012576,3.77222552,85.231,85.193,3.65790457]
[1772827012779,13.50063581,85.23,85.193,3.65790457]
[1772827012975,9.89541153,85.229,85.193,3.65790457]
[1772827013171,9.89541153,85.228,85.193,3.65790457]
[1772827013370,9.89541153,85.227,85.193,3.65790457]
[1772827013579,3.77222552,85.229,85.193,3.65790457]
[1772827013774,3.60522428,85.22,85.171,3.65790457]
[1772827014976,3.60522428,85.22,85.184,3.65790457]
[1772827015176,3.77222552,85.225,85.184,3.65790457]
[1772827015381,3.77222552,85.223,85.184,3.65790457]
[1772827015679,3.77222552,85.221,85.184,3.65790457]
[1772827016078,3.60522428,85.22,85.184,3.65790457]
[1772827016873,3.60522428,85.22,85.185,3.79749907]
[1772827017482,13.5988282,85.219,85.185,3.79749907]
[1772827017689,3.70615804,85.219,85.185,3.79749907]
[1772827020778,3.70615804,85.217,85.175,3.79749907]
[1772827020978,11.98277782,85.244,85.161,3.79749907]
[1772827020979,3.70615804,85.209,85.161,3.79749907]
[1772827021178,3.70615804,85.207,85.161,3.79749907]
[1772827021684,3.78038177,85.199,85.161,3.79749907]
[1772827022178,3.78038177,85.199,85.164,10.568]
[1772827022381,3.78038177,85.199,85.161,3.79749907]
[1772827022582,3.78038177,85.199,85.147,3.68740861]
[1772827022974,3.78038177,85.199,85.161,10.568]
[1772827023376,3.78038177,85.197,85.161,10.568]
[1772827024578,3.78038177,85.197,85.169,10.567]
[1772827024983,3.78038177,85.197,85.157,3.68740861]
[1772827026987,3.78038177,85.197,85.161,10.568]
[1772827027883,3.78038177,85.197,85.146,294.59009033]
[1772827028088,3.78038177,85.189,85.147,3.68740861]
[1772827029790,3.78038177,85.189,85.153,10.569]
[1772827030089,3.78038177,85.189,85.154,3.68740861]
[1772827031893,3.78038177,85.189,85.156,3.68740861]
[1772827032788,3.78038177,85.189,85.157,10.569]
[1772827032984,3.78038177,85.189,85.158,3.68740861]
[1772827033990,3.78038177,85.189,85.159,10.568]
[1772827035286,3.78038177,85.189,85.16,3.68740861]
[1772827035986,3.78038177,85.189,85.152,10.569]
[1772827036183,3.78038177,85.189,85.146,290.90268172]
[1772827036386,3.78038177,85.189,85.152,10.569]
[1772827036882,3.78038177,85.189,85.147,3.68740861]
[1772827038290,3.78038177,85.189,85.147,14.25740861]
[1772827039990,3.78038177,85.189,85.154,10.569]
[1772827040996,3.78038177,85.186,85.146,294.59009033]
[1772827041693,3.78038177,85.186,85.146,290.90268172]
[1772827042896,3.78038177,85.186,85.147,14.25740861]
[1772827044594,3.78038177,85.186,85.146,290.90268172]
[1772827044595,3.78038177,85.186,85.151,3.68740861]
[1772827044795,3.78038177,85.196,85.151,3.68740861]
[1772827045897,3.78038177,85.196,85.162,10.568]
[1772827046397,3.78038177,85.196,85.161,3.68740861]
[1772827049697,14.34438177,85.196,85.161,3.68740861]
[1772827052403,3.78038177,85.196,85.161,3.68740861]
[1772827052602,10.563,85.204,85.161,3.68740861]
[1772827053001,14.42636554,85.204,85.161,3.68740861]
[1772827053704,3.86336554,85.2,85.163,3.97694754]
[1772827053898,3.86336554,85.199,85.163,3.97694754]
[1772827054100,3.86336554,85.194,85.151,3.97694754]
[1772827055910,10.565,85.188,85.151,3.97694754]
[1772827057310,3.86336554,85.209,85.161,3.97694754]
[1772827058312,3.86336554,85.207,85.161,3.97694754]
[1772827058908,3.86336554,85.198,85.161,3.97694754]
[1772827059812,10.564,85.195,85.161,3.97694754]
[1772827060410,3.86336554,85.198,85.161,3.97694754]
[1772827066011,3.86336554,85.196,85.15,7.58464045]
[1772827066218,3.86336554,85.194,85.151,3.97694754]
[1772827067815,3.86336554,85.194,85.153,3.97694754]
[1772827068914,3.86336554,85.192,85.153,3.97694754]
[1772827069311,3.86336554,85.192,85.146,290.90268172]
[1772827069917,3.86336554,85.19,85.146,290.90268172]
[1772827070115,3.86336554,85.188,85.146,294.87962926]
[1772827070313,3.86336554,85.186,85.146,294.87962926]
[1772827070511,3.86336554,85.186,85.147,3.97694754]
[1772827070914,3.86336554,85.186,85.148,10.57]
[1772827074615,3.86336554,85.186,85.147,3.97694754]
[1772827075207,3.86336554,85.183,85.146,290.90268172]
[1772827075618,3.86336554,85.183,85.147,3.97694754]
[1772827077818,3.90164786,85.182,85.147,3.97694754]
[1772827078918,10.567,85.175,85.147,3.97694754]
[1772827079113,3.90164786,85.182,85.151,3.84034693]
[1772827079315,3.90164786,85.199,85.151,3.84034693]
[1772827079513,3.90164786,85.197,85.151,3.84034693]
[1772827079921,3.90164786,85.197,85.16,3.60769291]
[1772827080123,10.564,85.195,85.161,3.84034693]
[1772827084927,10.563,85.204,85.171,3.81790926]
[1772827085117,3.95811791,85.208,85.171,3.81790926]
[1772827085314,3.95811791,85.206,85.161,3.81790926]
[1772827085713,14.52111791,85.206,85.163,3.81790926]
[1772827085920,3.95811791,85.205,85.163,3.81790926]
[1772827086615,10.563,85.202,85.163,3.81790926]
[1772827086923,3.95811791,85.205,85.163,3.81790926]
[1772827087827,10.563,85.204,85.163,3.81790926]
[1772827089026,10.564,85.199,85.163,3.81790926]
[1772827090328,3.95811791,85.204,85.163,3.81790926]
[1772827092825,3.95811791,85.204,85.163,14.38590926]
[1772827093025,3.95811791,85.204,85.164,3.81790926]
[1772827095339,3.95811791,85.204,85.166,3.81790926]
[1772827096541,3.95811791,85.219,85.175,3.81790926]
[1772827096741,3.95811791,85.219,85.181,3.81790926]
[1772827098841,3.95811791,85.219,85.188,3.81790926]
[1772827099237,3.95811791,85.228,85.191,3.81790926]
[1772827099541,3.95811791,85.228,85.198,10.564]
[1772827100241,3.95811791,85.228,85.191,3.81790926]
[1772827101535,3.95811791,85.228,85.194,10.564]
[1772827102345,3.95811791,85.228,85.191,3.81790926]
[1772827103845,3.95811791,85.226,85.185,10.565]
[1772827104346,3.95811791,85.226,85.18,7.42243517]
[1772827104743,3.95811791,85.226,85.18,3.81790926]
[1772827105942,3.95811791,85.226,85.181,3.81790926]
[1772827107846,3.95811791,85.226,85.184,3.81790926]
[1772827108942,323.95450976,85.229,85.184,3.81790926]
[1772827108943,14.51911791,85.223,85.184,3.81790926]
[1772827112448,3.95811791,85.223,85.184,3.81790926]
[1772827115841,3.95811791,85.223,85.186,3.69049378]
[1772827116241,3.69079119,85.235,85.198,3.69049378]
[1772827117042,3.69079119,85.235,85.19,10.565]
[1772827117247,3.69079119,85.235,85.191,3.69049378]
[1772827118053,3.69079119,85.235,85.193,10.564]
[1772827118551,3.69079119,85.235,85.193,14.25449378]
[1772827119053,3.69079119,85.235,85.194,3.69049378]
[1772827119946,3.69079119,85.229,85.185,3.69049378]
[1772827121343,3.69079119,85.229,85.187,3.69049378]
[1772827122657,3.69079119,85.229,85.192,3.69049378]
[1772827127361,3.69079119,85.229,85.195,3.69049378]
[1772827129360,3.69079119,85.219,85.182,3.69049378]
[1772827133973,3.69079119,85.219,85.186,3.69049378]
[1772827135870,3.69079119,85.219,85.189,10.565]
[1772827137072,7.37662158,85.23,85.192,3.75774503]
[1772827137272,3.60452591,85.23,85.192,3.75774503]
[1772827137469,13.59836592,85.229,85.192,3.75774503]
[1772827137668,13.59867961,85.228,85.192,3.75774503]
[1772827137863,3.77209567,85.228,85.192,3.75774503]
[1772827138267,9.82872,85.227,85.192,3.75774503]
[1772827138575,3.77209567,85.228,85.192,3.75774503]
[1772827138768,13.6008067,85.227,85.192,3.75774503]
[1772827138975,3.77209567,85.227,85.192,3.75774503]
[1772827139174,3.77209567,85.225,85.192,3.75774503]
[1772827139469,3.77209567,85.223,85.184,10.565]
[1772827139674,3.77209567,85.221,85.184,10.565]
[1772827140565,3.77209567,85.221,85.19,10.565]
[1772827140766,3.77209567,85.221,85.191,3.75774503]
[1772827140966,3.77209567,85.22,85.191,3.75774503]
[1772827141168,3.77209567,85.22,85.172,3.75774503]
[1772827141572,3.77209567,85.22,85.183,3.75774503]
[1772827142877,3.77209567,85.22,85.185,10.565]
[1772827143373,3.77209567,85.22,85.189,10.565]
[1772827145276,3.77209567,85.22,85.171,287.71513779]
[1772827145277,3.77209567,85.22,85.176,10.566]
[1772827145477,3.85583866,85.218,85.176,14.21214886]
[1772827145671,3.85583866,85.218,85.177,3.64614886]
[1772827145872,3.85583866,85.209,85.171,287.71513779]
[1772827146078,3.85583866,85.209,85.173,10.567]
[1772827148676,3.85583866,85.209,85.166,3.64614886]
[1772827153385,3.85583866,85.209,85.169,3.64614886]
[1772827154686,3.85583866,85.209,85.173,14.21314886]
[1772827160289,3.85583866,85.209,85.173,3.64614886]
[1772827164292,3.85583866,85.203,85.173,3.64614886]
[1772827165593,10.563,85.201,85.173,3.64614886]
[1772827167490,10.564,85.196,85.173,3.64614886]
[1772827168896,3.85583866,85.203,85.173,3.64614886]
[1772827173504,3.85583866,85.203,85.161,10.568]
[1772827173702,3.85583866,85.203,85.162,3.7792682]
[1772827175498,3.85583866,85.203,85.165,3.7792682]
[1772827176205,3.84017306,85.199,85.147,3.7792682]
[1772827176398,3.84017306,85.189,85.147,3.7792682]
[1772827176594,3.84017306,85.179,85.147,3.7792682]
[1772827180108,3.84017306,85.179,85.151,10.569]
[1772827180407,3.84017306,85.179,85.147,3.7792682]
[1772827181102,7.44653067,85.19,85.147,3.7792682]
[1772827181308,3.84017306,85.189,85.147,3.7792682]
[1772827182008,3.84017306,85.188,85.147,3.7792682]
[1772827182417,3.84017306,85.179,85.147,3.7792682]
[1772827189913,3.84017306,85.179,85.149,3.7792682]
[1772827190913,3.84017306,85.189,85.149,3.7792682]
[1772827192311,3.84017306,85.187,85.142,10.571]
[1772827192518,3.84017306,85.187,85.143,3.7792682]
[1772827193809,3.84017306,85.187,85.152,3.7792682]
[1772827198319,3.84017306,85.187,85.154,10.569]
[1772827199216,3.96631233,85.179,85.145,10.57]
[1772827200321,3.96631233,85.179,85.14,3.69675349]
[1772827201519,3.96631233,85.213,85.151,3.69675349]
[1772827201824,3.91204646,85.211,85.161,3.69675349]
[1772827202223,3.91204646,85.211,85.18,3.60635761]
[1772827202418,3.91204646,85.211,85.171,3.89568962]
[1772827202624,21.115,85.251,85.067,213.411139]
[1772827202625,3.91204646,85.199,85.151,3.89568962]
[1772827202816,3.60635761,85.19,85.151,3.89568962]
[1772827203015,10.565,85.188,85.151,3.89568962]
[1772827203419,3.60635761,85.2,85.151,3.89568962]
[1772827203727,3.91204646,85.189,85.151,3.89568962]
[1772827204623,3.91204646,85.169,85.13,3.89568962]
[1772827204818,3.91204646,85.191,85.14,3.60635761]
[1772827205127,3.91204646,85.202,85.161,3.89568962]
[1772827205522,10.563,85.2,85.161,3.89568962]
[1772827205822,3.91204646,85.202,85.161,3.89568962]
[1772827206024,3.60635761,85.2,85.161,3.89568962]
[1772827206227,7.51840407,85.2,85.161,3.89568962]
[1772827206529,3.91204646,85.2,85.161,3.89568962]
[1772827207031,10.564,85.197,85.161,3.89568962]
[1772827209028,3.91204646,85.209,85.161,3.89568962]
[1772827209229,3.91204646,85.207,85.161,3.89568962]
[1772827209523,3.91204646,85.205,85.161,3.89568962]
[1772827209728,13.7351717,85.204,85.161,3.89568962]
[1772827209926,9.82312524,85.203,85.161,3.89568962]
[1772827210125,3.60635761,85.21,85.164,3.89568962]
[1772827210126,9.82312524,85.202,85.164,3.89568962]
[1772827210327,9.82312524,85.201,85.164,3.89568962]
[1772827210627,9.82312524,85.2,85.164,3.89568962]
[1772827210930,9.82312524,85.199,85.164,3.89568962]
[1772827211230,3.91204646,85.215,85.172,3.89568962]
[1772827211522,3.60635761,85.21,85.172,3.89568962]
[1772827211728,9.8274278,85.209,85.176,3.89568962]
[1772827212025,3.91204646,85.215,85.176,3.89568962]
[1772827212220,9.82869116,85.214,85.176,3.89568962]
[1772827212529,3.60635761,85.21,85.176,3.89568962]
[1772827212723,3.60635761,85.21,85.169,10.567]
[1772827212724,3.91204646,85.208,85.169,10.567]
[1772827213934,3.91204646,85.208,85.172,10.567]
[1772827214832,3.91204646,85.208,85.17,3.89568962]
[1772827217626,3.91204646,85.199,85.158,3.89568962]
[1772827217832,3.60635761,85.19,85.158,3.89568962]
[1772827218035,3.91204646,85.199,85.158,3.89568962]
[1772827218737,10.564,85.198,85.158,3.89568962]
[1772827219034,3.91204646,85.209,85.16,3.60635761]
[1772827219235,9.78128624,85.208,85.161,3.89568962]
[1772827219432,9.78128624,85.207,85.161,3.89568962]
[1772827219634,3.91204646,85.209,85.161,3.89568962]
[1772827219834,10.563,85.207,85.162,3.89568962]
[1772827220840,10.563,85.207,85.165,3.89568962]
[1772827221238,10.563,85.207,85.171,3.89568962]
[1772827221537,3.60616394,85.22,85.173,3.89568962]
[1772827221731,3.91204646,85.218,85.173,3.89568962]
[1772827221931,3.60616394,85.21,85.173,3.89568962]
[1772827222838,3.60616394,85.21,85.173,14.46268962]
[1772827223338,3.60616394,85.21,85.174,3.89568962]
[1772827223540,3.91204646,85.216,85.174,3.89568962]
[1772827226138,3.60616394,85.21,85.174,3.89568962]
[1772827228743,10.562,85.209,85.174,3.89568962]
[1772827231142,10.561,85.219,85.174,3.89568962]
[1772827231945,3.60616394,85.2,85.162,3.86605985]
[1772827232846,10.564,85.198,85.162,3.86605985]
[1772827233046,3.60616394,85.21,85.162,3.86605985]
[1772827234244,3.60616394,85.21,85.165,3.86605985]
[1772827235750,3.60616394,85.21,85.168,10.567]
[1772827235946,3.60616394,85.21,85.169,3.86605985]
[1772827238249,3.60616394,85.21,85.171,3.86605985]
[1772827239854,3.93791902,85.211,85.174,3.86605985]
[1772827240448,7.54408296,85.22,85.182,14.43205985]
[1772827240751,3.93791902,85.218,85.182,14.43205985]
[1772827240952,3.93791902,85.209,85.176,10.566]
[1772827242055,3.93791902,85.199,85.17,10.567]
[1772827246457,3.93791902,85.199,85.162,10.568]
[1772827246761,3.93791902,85.189,85.151,3.86605985]
[1772827247362,3.93791902,85.169,85.121,3.86605985]
[1772827247562,9.79419665,85.168,85.121,3.86605985]
[1772827247866,9.79419665,85.167,85.121,3.86605985]
[1772827248059,3.93791902,85.169,85.121,3.86605985]
[1772827248665,3.60616394,85.18,85.133,3.86605985]
[1772827248856,9.82966036,85.179,85.133,3.86605985]
[1772827249056,3.93791902,85.177,85.133,3.86605985]
[1772827249258,3.93791902,85.175,85.133,3.86605985]
[1772827249455,3.60616394,85.18,85.149,3.86605985]
[1772827249660,7.54408296,85.19,85.149,3.86605985]
[1772827249860,3.93791902,85.201,85.151,3.86605985]
[1772827250164,3.93791902,85.213,85.172,3.86605985]
[1772827250362,9.83193561,85.212,85.172,3.86605985]